fUST/lending_fUST_20241106
["ID","MTS","AMOUNT","RATE_DAILY","PERIOD"]
[341366354,1730839839382,-504.07791051,0.00041095,14]
[341366355,1730839839392,-500.0,0.00041095,2]
[341366356,1730839839402,-154.8135434,0.00041095,2]
[341366358,1730839839412,-697.54375257,0.00041095,2]
[341366359,1730839839425,-200.0,0.00041095,7]
[341366360,1730839839435,-200.0,0.00041095,7]
[341366361,1730839839445,-328.59,0.00041095,7]
[341366362,1730839839455,-500.0,0.00041095,14]
[341366363,1730839839465,-500.0,0.00041095,14]
[341366364,1730839839475,-500.0,0.00041095,14]
[341366365,1730839839484,-206.22857018,0.00041095,30]
[341366366,1730839839494,-180.6284044,0.00041096,2]
[341366367,1730839839503,-480.74,0.000411,2]
[341366368,1730839839514,-1199.42896407,0.00041159,2]
[341366369,1730839839524,-509.5708628,0.000414,4]
[341366370,1730839839534,-12252.64801474,0.00041481,2]
[341366371,1730839839544,-3209.646,0.00041616,14]
[341366372,1730839839554,-166.441,0.0004179,30]
[341366373,1730839839565,-252.0,0.000419,2]
[341366374,1730839839575,-500.0,0.000419,2]
[341366375,1730839839585,-175.22003282,0.000419,2]
[341366376,1730839839594,-509.5708628,0.000419,5]
[341366377,1730839839604,-509.00382709,0.000419,28]
[341366378,1730839839613,-500.0,0.00041973,10]
[341366379,1730839839623,-196.85854318,0.00041996,2]
[341366380,1730839839634,-432.10275164,0.00041999,31]
[341366381,1730839839643,-197.24202638,0.00041999,31]
[341366382,1730839839653,-202.2201414,0.00041999,31]
[341366383,1730839839663,-399.3076349,0.00041999,31]
[341366384,1730839839673,-441.12992164,0.00041999,31]
[341366385,1730839839683,-500.0,0.00041999,31]
[341366387,1730839839692,-364.77862611,0.00041999,31]
[341366388,1730839839702,-169.69349456,0.00041999,7]
[341366389,1730839839712,-352.21168967,0.00041999,31]
[341366390,1730839839722,-500.0,0.00041999,31]
[341366391,1730839839732,-500.0,0.00041999,31]
[341366392,1730839839742,-352425.15802206,0.00042,30]
[341366393,1730839839960,-150.80549,0.000357,2]
[341366394,1730839839969,-500.0,0.00041095,14]
[341366395,1730839839980,-500.0,0.00041095,14]
[341366396,1730839839990,-12775.89450998,0.00042,30]
[341366397,1730839840002,-1612.66228636,0.00042,30]
[341366398,1730839840019,-2739.7672309,0.00042,30]
[341366434,1730839845955,-500.0,0.00041095,14]
[341366437,1730839845967,-500.0,0.00041095,14]
[341366438,1730839845976,-196.9086135,0.00041095,14]
[341366439,1730839845986,-4.2219945,0.00041095,14]
[341366440,1730839845998,-378.37065495,0.00041095,14]
[341366441,1730839846009,-2420.49873705,0.00042,30]
[341366442,1730839869400,170.412433,0.00013973,2]
[341366443,1730840036986,1604.71502108,0.00034429,50]
[341366444,1730840341100,520.83333333,0.00020816,2]
[341366445,1730840573100,171.176349,0.00013973,2]
[341366446,1730840827138,-160.0,0.00024658,2]
[341366447,1730840827162,-520.83333333,0.00024703,2]
[341366448,1730840827188,-300.0,0.00027294,2]
[341366449,1730840827212,-13.53071396,0.00027294,2]
[341366450,1730840835087,-520.83333333,0.00023407,2]
[341366451,1730840835114,-286.46928604,0.00027294,2]
[341366452,1730840835136,-401.98008176,0.00027295,2]
[341366453,1730840845090,-98.01991824,0.00027295,2]
[341366454,1730840845112,-500.0,0.00027295,2]
[341366455,1730840845132,-500.0,0.00027295,2]
[341366456,1730840845152,-500.0,0.00027295,2]
[341366457,1730840845255,-500.0,0.00027295,2]
[341366458,1730840845277,-500.0,0.00027295,2]
[341366459,1730840845298,-500.0,0.00027295,2]
[341366460,1730840845318,-500.0,0.00027295,2]
[341366461,1730840845339,-150.0,0.000287,2]
[341366462,1730840845361,-32.3281512,0.00029499,2]
[341366463,1730840945177,-520.83333333,0.00022112,2]
[341366464,1730840955123,-849.257406,0.00029861,2]
[341366465,1730840955147,-321.2053452,0.00029961,2]
[341366466,1730840955169,-151.0,0.0003,120]
[341366467,1730840955190,-151.0,0.0003,120]
[341366468,1730840955293,-203.3913878,0.00030041,2]
[341366469,1730840955319,-909.5255905,0.00030048,2]
[341366470,1730840955340,-175.55870432,0.00030137,2]
[341366471,1730840955360,-836.4427589,0.0003032,2]
[341366472,1730840955381,-200.0,0.000305,120]
[341366473,1730840955402,-849.257406,0.00030546,2]
[341366474,1730840955423,-400.0,0.00030979,2]
[341366475,1730840955445,-400.0,0.00030979,2]
[341366476,1730840955465,-521.0277057,0.00031159,2]
[341366477,1730840955485,-168.364289,0.00031225,2]
[341366478,1730840955507,-849.257406,0.00031231,2]
[341366479,1730840955531,-239.172447,0.00031499,2]
[341366480,1730840955552,-2673.3608771,0.00031849,2]
[341366481,1730840961203,-2326.6391229,0.00031849,2]
[341366482,1730840961227,-510.80189727,0.00031945,120]
[341366483,1730840961247,-200.0,0.000322,120]
[341366484,1730840961267,-500.0,0.0003238,5]
[341366485,1730840961290,-170.327,0.00032454,32]
[341366486,1730840961311,-169.69349456,0.00032874,2]
[341366487,1730840961333,-500.0,0.00032874,2]
[341366488,1730840961354,-500.0,0.00032874,2]
[341366489,1730840961375,-364.77862611,0.00032874,2]
[341366490,1730840961396,-500.0,0.00032874,2]
[341366491,1730840961418,-500.0,0.00032874,2]
[341366492,1730840961438,-500.0,0.00032874,2]
[341366493,1730840961460,-500.0,0.00032874,2]
[341366494,1730840961482,-500.0,0.00032874,2]
[341366495,1730840961502,-153.97488163,0.00032874,2]
[341366496,1730840961527,-168.0,0.00032875,2]
[341366497,1730840961547,-500.0,0.00032876,7]
[341366498,1730840961568,-186.253493,0.00032877,120]
[341366499,1730840961590,-151.0,0.00033151,120]
[341366500,1730840961613,-151.0,0.00033342,120]
[341366501,1730840961635,-560.0,0.00033355,2]
[341366502,1730840961655,-1502.81459949,0.00033499,2]
[341366503,1730840961680,-152.24,0.000335,31]
[341366504,1730840961704,-152.24,0.000335,31]
[341366505,1730840961726,-152.24,0.000335,31]
[341366506,1730840961747,-152.24,0.000335,31]
[341366507,1730840961771,-152.24,0.000335,31]
[341366508,1730840961793,-152.24,0.000335,31]
[341366509,1730840961817,-152.24,0.000335,31]
[341366510,1730840961840,-152.24,0.000335,31]
[341366511,1730840961864,-152.24,0.000335,31]
[341366512,1730840961888,-152.24,0.000335,31]
[341366513,1730840961908,-500.0,0.00033698,10]
[341366514,1730840961928,-404.91291344,0.0003375,5]
[341366515,1730840961950,-200.0,0.000339,120]
[341366516,1730840961970,-233.31,0.00034,2]
[341366517,1730840961989,-560.0,0.00034077,2]
[341366518,1730840962012,-155.0,0.00034429,30]
[341366519,1730840962033,-155.0,0.00034429,30]
[341366520,1730840962053,-155.0,0.00034429,30]
[341366521,1730840962076,-155.0,0.00034429,30]
[341366522,1730840962098,-155.0,0.00034429,30]
[341366523,1730840962120,-155.0,0.00034429,30]
[341366524,1730840962140,-174.80981786,0.00034429,30]
[341366525,1730840962162,-500.0,0.0003452,13]
[341366526,1730840962183,-257.08789431,0.0003468,2]
[341366527,1730840962204,-160.0,0.00034799,3]
[341366528,1730840962224,-500.0,0.00035342,16]
[341366529,1730840962245,-5000.0,0.00035599,120]
[341366530,1730840962266,-350.77329,0.000356,120]
[341366531,1730840962288,-152.24,0.000356,31]
[341366532,1730840962310,-152.24,0.000356,31]
[341366533,1730840962332,-152.24,0.000356,31]
[341366534,1730840962356,-152.24,0.000356,31]
[341366535,1730840962378,-152.24,0.000356,31]
[341366536,1730840962404,-152.24,0.000356,31]
[341366537,1730840962429,-152.24,0.000356,31]
[341366538,1730840962524,-152.24,0.000356,31]
[341366539,1730840962553,-152.24,0.000356,31]
[341366540,1730840962577,-152.24,0.000356,31]
[341366541,1730840962600,-152.24,0.000356,31]
[341366542,1730840962624,-152.24,0.000356,31]
[341366543,1730840962649,-152.24,0.000356,31]
[341366544,1730840962671,-152.24,0.000356,31]
[341366545,1730840962697,-152.24,0.000356,31]
[341366546,1730840962720,-152.24,0.000356,31]
[341366547,1730840962742,-152.24,0.000356,31]
[341366548,1730840962765,-152.24,0.000356,31]
[341366549,1730840962788,-152.24,0.000356,31]
[341366550,1730840962811,-152.24,0.000356,31]
[341366551,1730840962832,-206.22857019,0.0003565,14]
[341366552,1730840962853,-160.0,0.00035699,4]
[341366553,1730840962875,-754.0,0.00035913,2]
[341366554,1730840962896,-165.0,0.00036,2]
[341366555,1730840962920,-500.0,0.00036164,19]
[341366556,1730840962945,-151.0,0.00036301,120]
[341366557,1730840962970,-160.0,0.00036599,5]
[341366558,1730840962991,-103.92827061,0.000366,120]
[341366559,1730840966089,-399.91025307,0.00036125,5]
[341366560,1730840966109,-500.37269111,0.00036125,5]
[341366561,1730840966132,-562.07172939,0.000366,120]
[341366562,1730840966156,-151.0,0.00036685,120]
[341366563,1730840966177,-445.0,0.000369,14]
[341366564,1730840972585,187.32735523,0.00036125,2]
[341366565,1730840973342,500.0,0.00036125,5]
[341366566,1730840982565,500.0,0.00036125,2]
[341366567,1730840982589,500.0,0.00036125,5]
[341366568,1730840982617,500.0,0.00036125,5]
[341366569,1730840982796,500.0,0.00036125,5]
[341366570,1730841001643,209.98,0.00035,2]
[341366571,1730841006396,465.1440423,0.00032365,2]
[341366682,1730841038366,-150.0,0.00034414,2]
[341366683,1730841038378,-500.0,0.00036986,22]
[341366684,1730841038387,-1000.0,0.00037495,5]
[341366685,1730841038397,-1000.0,0.00037495,5]
[341366686,1730841038409,-160.0,0.00037499,6]
[341366687,1730841038419,-400.0,0.00037523,2]
[341366688,1730841038428,-152.24,0.000377,31]
[341366689,1730841038438,-152.24,0.000377,31]
[341366690,1730841038447,-152.24,0.000377,31]
[341366691,1730841038457,-152.24,0.000377,31]
[341366692,1730841038466,-152.24,0.000377,31]
[341366693,1730841038475,-152.24,0.000377,31]
[341366694,1730841038484,-152.24,0.000377,31]
[341366695,1730841038493,-152.24,0.000377,31]
[341366696,1730841038508,-152.24,0.000377,31]
[341366697,1730841038519,-152.24,0.000377,31]
[341366699,1730841038531,-152.24,0.000377,31]
[341366701,1730841038544,-152.24,0.000377,31]
[341366703,1730841038555,-152.24,0.000377,31]
[341366704,1730841038566,-152.24,0.000377,31]
[341366705,1730841038575,-152.24,0.000377,31]
[341366706,1730841038585,-152.24,0.000377,31]
[341366707,1730841038594,-152.24,0.000377,31]
[341366708,1730841038603,-152.24,0.000377,31]
[341366709,1730841038615,-152.24,0.000377,31]
[341366710,1730841038626,-152.24,0.000377,31]
[341366711,1730841038636,-500.0,0.00037808,25]
[341366712,1730841038645,-300.0,0.000379,15]
[341366713,1730841038655,-559.65833012,0.00038,60]
[341366714,1730841038665,-209.98,0.00038,2]
[341366715,1730841038675,-350.44165351,0.00038199,15]
[341366716,1730841038684,-1610.43178138,0.000382,109]
[341366717,1730841038693,-1610.43178134,0.000382,109]
[341366718,1730841038703,-1610.43178134,0.000382,109]
[341366719,1730841038713,-336.0,0.00038275,2]
[341366720,1730841038723,-5000.0,0.00038275,120]
[341366721,1730841038733,-506.0,0.00038275,3]
[341366722,1730841038743,-500.0,0.00038275,3]
[341366723,1730841038757,-500.0,0.00038275,3]
[341366724,1730841038766,-500.0,0.00038275,3]
[341366725,1730841038776,-500.0,0.00038275,3]
[341366726,1730841038785,-500.0,0.00038275,3]
[341366727,1730841038795,-500.0,0.00038275,3]
[341366728,1730841038804,-500.0,0.00038275,3]
[341366729,1730841038814,-500.0,0.00038275,3]
[341366730,1730841038824,-500.0,0.00038275,3]
[341366731,1730841038834,-500.0,0.00038275,3]
[341366732,1730841038843,-500.0,0.00038275,3]
[341366733,1730841038853,-186.253493,0.00038356,120]
[341366734,1730841038862,-160.0,0.00038399,7]
[341366735,1730841038872,-171.176349,0.00038575,2]
[341366736,1730841038881,-500.0,0.0003863,28]
[341366737,1730841038891,-5000.0,0.00038722,65]
[341366738,1730841038901,-5000.0,0.00038722,65]
[341366739,1730841038910,-300.0,0.000389,17]
[341366740,1730841038919,-1419.01084761,0.00038934,69]
[341366741,1730841038931,-114.90515769,0.00038934,69]
[341366742,1730841038941,-1610.43178134,0.00038934,114]
[341366743,1730841038950,-160.0,0.00039299,8]
[341366744,1730841038959,-500.0,0.00039452,31]
[341366745,1730841038969,-151.0,0.00039452,120]
[341366746,1730841038978,-152.24,0.000397,31]
[341366747,1730841038987,-152.24,0.000397,31]
[341366748,1730841038997,-152.24,0.000397,31]
[341366749,1730841039009,-152.24,0.000397,31]
[341366750,1730841039020,-152.24,0.000397,31]
[341366751,1730841039030,-152.24,0.000397,31]
[341366752,1730841039041,-152.24,0.000397,31]
[341366753,1730841039051,-152.24,0.000397,31]
[341366754,1730841039061,-152.24,0.000397,31]
[341366755,1730841039070,-152.24,0.000397,31]
[341366756,1730841039080,-152.24,0.000397,31]
[341366757,1730841039090,-152.24,0.000397,31]
[341366758,1730841039101,-152.24,0.000397,31]
[341366759,1730841039110,-152.24,0.000397,31]
[341366760,1730841039120,-152.24,0.000397,31]
[341366761,1730841039130,-152.24,0.000397,31]
[341366762,1730841039139,-152.24,0.000397,31]
[341366763,1730841039148,-152.24,0.000397,31]
[341366764,1730841039158,-152.24,0.000397,31]
[341366765,1730841039167,-152.24,0.000397,31]
[341366766,1730841039176,-300.0,0.000399,19]
[341366767,1730841039185,-158.40841798,0.000399,32]
[341366768,1730841039194,-509.570863,0.000399,2]
[341366769,1730841039204,-570.38726527,0.0004,5]
[341366770,1730841039283,-1500.0,0.0004,5]
[341366771,1730841039293,-199.999999,0.0004,120]
[341366772,1730841039303,-32605.6489311,0.0004,7]
[341366773,1730841039313,-151.0,0.00040027,120]
[341366774,1730841039323,-164.101,0.0004012,30]
[341366775,1730841039333,-160.0,0.00040199,9]
[341366776,1730841039342,-176.3564931,0.00040238,31]
[341366777,1730841039352,-240.4511826,0.00040239,30]
[341366778,1730841039361,-388.5038609,0.00040239,30]
[341366779,1730841039370,-303.3217478,0.00040239,30]
[341366780,1730841039380,-5000.0,0.00040262,120]
[341366781,1730841039389,-500.0,0.00040273,34]
[341366782,1730841039400,-153.0,0.00040493,30]
[341366783,1730841039410,-306.3571712,0.00040493,30]
[341366784,1730841039419,-214.2738971,0.00040493,30]
[341366785,1730841039429,-201.6196396,0.00040493,30]
[341366786,1730841039439,-152.0,0.00040542,15]
[341366787,1730841039449,-152.0,0.00040659,15]
[341366788,1730841039459,-152.0,0.00040776,15]
[341366789,1730841039468,-152.0,0.00040894,15]
[341366790,1730841039477,-300.0,0.000409,20]
[341366791,1730841039487,-150.0,0.000409,2]
[341366792,1730841039498,-158.49,0.00040975,3]
[341366793,1730841039508,-633.97,0.00040984,3]
[341366794,1730841039517,-316.98,0.00040985,3]
[341366795,1730841039526,-201.81000838,0.00040994,2]
[341366796,1730841039537,-201.81000838,0.00040994,2]
[341366797,1730841039548,-201.81000838,0.00040995,2]
[341366798,1730841039557,-201.81000838,0.00040995,2]
[341366799,1730841039567,-5906.53637204,0.00040995,2]
[341366800,1730841039576,-201.81000838,0.00040995,2]
[341366801,1730841039587,-994.08,0.00040995,2]
[341366802,1730841039597,-160.0,0.00041,14]
[341366803,1730841039610,-170.25,0.00041,120]
[341366804,1730841039619,-500.0,0.00041,64]
[341366805,1730841039630,-173.48304181,0.00041,2]
[341366811,1730841042259,-36.49695819,0.00041,2]
[341366812,1730841042270,-97.86778638,0.00041011,15]
[341366832,1730841046291,-303.3217478,0.00040239,30]
[341366833,1730841046301,-44.2082522,0.00040493,30]
[341366834,1730841070738,150.0,0.00036,2]
[341366836,1730841140030,150.0,0.00035,2]
[341366837,1730841142023,198.39,0.0003,2]
[341366838,1730841173322,164.970223,0.00013973,2]
[341366839,1730841564502,520.83333333,0.00020816,2]
[341366840,1730841684951,171.176349,0.00013973,2]
[341366843,1730841947156,-180.1784701,0.0002712,2]
[341366844,1730841947179,-520.83333333,0.00027123,2]
[341366845,1730841947204,-189.6099984,0.00027259,2]
[341366846,1730841947227,-239.172448,0.00027336,2]
[341366847,1730841947249,-2919.89557666,0.000287,2]
[341366848,1730842026096,-207.41130454,0.00025546,2]
[341366850,1730842045089,-313.42202879,0.00025546,2]
[341366851,1730842045112,-638.27841849,0.0002868,2]
[341366852,1730842048086,-304.23331922,0.0002868,2]
[341366853,1730842051098,-1115.90772211,0.0002868,2]
[341366854,1730842053119,-520.83333333,0.0002397,2]
[341366855,1730842053141,-175.63736415,0.0002868,2]
[341366856,1730842053164,-80.10442334,0.000287,2]
[341366857,1730842053186,-3000.0,0.0002871,2]
[341366858,1730842053211,-864.4100525,0.0002872,2]
[341366863,1730842116455,-520.83333333,0.00022393,2]
[341366868,1730842124531,-3080.16666667,0.00022,30]
[341366873,1730842146110,-14054.9268278,0.00022,30]
[341366874,1730842147104,-59201.67249816,0.00022,30]
[341366875,1730842147129,-2135.5899475,0.0002872,2]
[341366876,1730842147150,-3000.0,0.0002873,2]
[341366877,1730842147175,-5000.0,0.00028739,2]
[341366878,1730842147197,-3000.0,0.0002874,2]
[341366879,1730842147219,-500.0,0.00028748,2]
[341366880,1730842147255,-500.0,0.00028748,2]
[341366881,1730842147282,-455.49690472,0.00028748,2]
[341366882,1730842147305,-225.31156478,0.00028748,2]
[341366883,1730842147330,-500.0,0.00028748,2]
[341366884,1730842147359,-500.0,0.00028748,2]
[341366885,1730842147384,-500.0,0.00028748,2]
[341366886,1730842147408,-500.0,0.00028748,2]
[341366887,1730842147432,-493.35529467,0.00028748,2]
[341366888,1730842147456,-500.0,0.00028748,2]
[341366889,1730842147479,-214.78960225,0.00028748,2]
[341366890,1730842147504,-634.70434168,0.00028748,2]
[341366891,1730842147527,-3000.0,0.0002875,2]
[341366892,1730842147550,-170.32803609,0.0002876,20]
[341366893,1730842147574,-3000.0,0.0002876,2]
[341366894,1730842147598,-461.0,0.0002876,10]
[341366895,1730842147624,-3000.0,0.0002877,2]
[341366896,1730842147648,-3000.0,0.0002878,2]
[341366897,1730842147671,-5000.0,0.00028789,2]
[341366898,1730842147695,-3000.0,0.0002879,2]
[341366899,1730842147718,-3000.0,0.000288,2]
[341366900,1730842147740,-3000.0,0.0002881,2]
[341366901,1730842147762,-3000.0,0.0002882,2]
[341366902,1730842147784,-3000.0,0.0002883,2]
[341366903,1730842147807,-5000.0,0.00028839,2]
[341366904,1730842147830,-3000.0,0.0002884,2]
[341366905,1730842147852,-3000.0,0.0002885,2]
[341366906,1730842147875,-3000.0,0.0002886,2]
[341366907,1730842147898,-3000.0,0.0002887,2]
[341366908,1730842147927,-3000.0,0.0002888,2]
[341366909,1730842147951,-5000.0,0.00028889,2]
[341366910,1730842147974,-3000.0,0.0002889,2]
[341366911,1730842147997,-3000.0,0.000289,2]
[341366912,1730842148020,-1681.23381415,0.0002891,2]
[341366913,1730842158183,-1318.76618585,0.0002891,2]
[341366914,1730842158205,-3000.0,0.0002892,2]
[341366915,1730842158230,-3000.0,0.0002893,2]
[341366916,1730842158251,-438.39,0.00028939,3]
[341366917,1730842158274,-304.69,0.00028939,3]
[341366918,1730842158296,-152.35,0.00028939,3]
[341366919,1730842158318,-3000.0,0.0002894,2]
[341366920,1730842158340,-457.07,0.0002894,3]
[341366921,1730842158362,-5000.0,0.00028948,2]
[341366922,1730842158384,-3378.435678,0.0002895,2]
[341366923,1730842158406,-2740.80233,0.0003,3]
[341366924,1730842158427,-252.0,0.0003,2]
[341366925,1730842158448,-391.26343314,0.0003,10]
[341366926,1730842158469,-1400.86987479,0.0003,10]
[341366927,1730842158490,-220.22957759,0.00030137,2]
[341366928,1730842158511,-154.16070431,0.00030137,2]
[341366929,1730842158532,-876.78,0.00030309,3]
[341366930,1730842158554,-609.38,0.00030309,3]
[341366931,1730842158575,-304.7,0.00030309,3]
[341366932,1730842158596,-216.30401039,0.00031,2]
[341366933,1730842158617,-5849.7173148,0.0003212,10]
[341366934,1730842158639,-2234.05682396,0.00032457,2]
[341366935,1730842158661,-500.0,0.00032876,7]
[341366936,1730842158683,-186.253493,0.00032877,120]
[341366937,1730842158703,-35266.79063732,0.00033,2]
[341366938,1730842158726,-153.19,0.000335,31]
[341366939,1730842158748,-153.19,0.000335,31]
[341366940,1730842158771,-153.19,0.000335,31]
[341366941,1730842158794,-153.19,0.000335,31]
[341366942,1730842158816,-153.19,0.000335,31]
[341366943,1730842158838,-500.0,0.00033698,10]
[341366944,1730842158859,-6816.4278907,0.0003398,4]
[341366945,1730842158881,-2234.05682396,0.00034346,2]
[341366946,1730842158902,-1437.47,0.00034416,30]
[341366947,1730842158924,-500.0,0.0003452,13]
[341366948,1730842158948,-937.21915629,0.00035,2]
[341366949,1730842158970,-150.0,0.00035,2]
[341366950,1730842158991,-7294.09278491,0.00035,2]
[341366951,1730842159109,-3190.34132261,0.00035,2]
[341366952,1730842159130,-168.79379705,0.00035,120]
[341366953,1730842159152,-1004.34641589,0.00035,5]
[341366954,1730842159174,-408.27901053,0.00035342,16]
[341366955,1730842159197,-153.19,0.000356,31]
[341366956,1730842159221,-153.19,0.000356,31]
[341366957,1730842159244,-153.19,0.000356,31]
[341366958,1730842159267,-153.19,0.000356,31]
[341366959,1730842159289,-153.19,0.000356,31]
[341366960,1730842159312,-153.19,0.000356,31]
[341366961,1730842159336,-153.19,0.000356,31]
[341366962,1730842159358,-153.19,0.000356,31]
[341366963,1730842159381,-153.19,0.000356,31]
[341366964,1730842159403,-153.19,0.000356,31]
[341366965,1730842159426,-2234.05682396,0.00036234,2]
[341366966,1730842159447,-505.09160497,0.00036586,7]
[341366967,1730842159470,-8186.43002878,0.00036718,3]
[341366968,1730842159494,-156.18489857,0.000369,2]
[341366971,1730842170451,150.0,0.00035,2]
[341366972,1730842170829,164.970223,0.00013973,2]
[341366973,1730842177850,520.83333333,0.00020816,2]
[341367016,1730842232227,-421.49265646,0.00034415,2]
[341367021,1730842232442,-557.78114438,0.00034415,2]
[341367030,1730842237594,150.0,0.00035,2]
[341367059,1730842238632,-75.88906196,0.00034415,2]
[341367060,1730842238643,-201.55266142,0.00034415,5]
[341367061,1730842238652,-150.64205859,0.00034415,2]
[341367062,1730842238662,-5000.0,0.00036999,120]
[341367063,1730842238672,-265.0,0.00037,2]
[341367064,1730842238684,-389.02567004,0.00037487,7]
[341367065,1730842238698,-265.0,0.00037671,2]
[341367066,1730842238707,-153.19,0.000377,31]
[341367067,1730842238717,-153.19,0.000377,31]
[341367068,1730842238726,-153.19,0.000377,31]
[341367069,1730842238734,-153.19,0.000377,31]
[341367070,1730842238743,-153.19,0.000377,31]
[341367071,1730842238752,-153.19,0.000377,31]
[341367072,1730842238762,-153.19,0.000377,31]
[341367073,1730842238771,-153.19,0.000377,31]
[341367074,1730842238780,-153.19,0.000377,31]
[341367075,1730842238789,-153.19,0.000377,31]
[341367076,1730842238799,-760.49113712,0.00037791,7]
[341367077,1730842238808,-391.82452836,0.000382,109]
[341367078,1730842238818,-391.82452834,0.000382,109]
[341367079,1730842238828,-391.82452834,0.000382,109]
[341367080,1730842238837,-391.82452834,0.00038575,112]
[341367081,1730842238847,-190.53217803,0.00038719,7]
[341367082,1730842238857,-292.74492685,0.00038719,15]
[341367083,1730842238867,-10000.0,0.0003872,4]
[341367084,1730842238877,-885.58222463,0.00038961,70]
[341367085,1730842238886,-500.0,0.00038973,5]
[341367086,1730842238896,-500.0,0.00038973,5]
[341367087,1730842238905,-283.09,0.0003899,10]
[341367088,1730842238914,-539.83,0.0003899,10]
[341367089,1730842238924,-449.86,0.0003899,10]
[341367090,1730842238937,-156.6,0.00038999,2]
[341367091,1730842238946,-156.6,0.00038999,2]
[341367092,1730842238955,-156.6,0.00038999,2]
[341367093,1730842238965,-156.6,0.00038999,2]
[341367094,1730842238974,-477.49339932,0.00039,2]
[341367095,1730842238984,-324898.38242785,0.00039,2]
[341367096,1730842238994,-206.22857018,0.00039,14]
[341367097,1730842239003,-150.0,0.00039,2]
[341367098,1730842239013,-265.0,0.00039267,14]
[341367099,1730842239023,-153.0,0.00039397,30]
[341367100,1730842239032,-153.0,0.00039397,30]
[341367101,1730842239126,-153.0,0.00039397,30]
[341367102,1730842239136,-153.0,0.00039397,30]
[341367103,1730842239145,-153.0,0.00039397,30]
[341367104,1730842239155,-1293.55,0.00039634,120]
[341367105,1730842239165,-153.0,0.00039671,30]
[341367106,1730842239175,-261.7917478,0.00039671,30]
[341367107,1730842239186,-153.0,0.00039671,30]
[341367108,1730842239197,-153.0,0.00039671,30]
[341367109,1730842239207,-153.0,0.00039671,30]
[341367110,1730842239216,-153.0,0.00039671,30]
[341367111,1730842239225,-454.3690161,0.00039671,30]
[341367112,1730842239235,-153.19,0.000397,31]
[341367113,1730842239245,-153.19,0.000397,31]
[341367114,1730842239255,-153.19,0.000397,31]
[341367115,1730842239264,-153.19,0.000397,31]
[341367116,1730842239274,-153.19,0.000397,31]
[341367117,1730842239288,-153.19,0.000397,31]
[341367118,1730842239297,-153.19,0.000397,31]
[341367119,1730842239306,-153.19,0.000397,31]
[341367120,1730842239316,-153.19,0.000397,31]
[341367121,1730842239326,-153.19,0.000397,31]
[341367122,1730842239336,-158.40841799,0.000399,32]
[341367123,1730842239346,-3606.71030224,0.0004,2]
[341367124,1730842239355,-6412.999999,0.0004,7]
[341367125,1730842239365,-14000.0,0.0004,4]
[341367126,1730842239375,-223.38047531,0.0004,120]
[341367127,1730842239384,-556.08044916,0.0004,7]
[341367128,1730842239394,-500.0,0.0004,30]
[341367129,1730842239403,-153.0,0.00040219,30]